[Event "FIDE Women World Blitz 2021"]
[Site "Warsaw"]
[Date "2021.12.29"]
[Round "1.1"]
[White "Efroimski, Marsel"]
[Black "Lagno, Kateryna"]
[Result "1-0"]
[ECO "C48"]
[WhiteElo "2419"]
[BlackElo "2550"]
[Annotator "ChessBase"]
[PlyCount "107"]
[EventDate "2021.12.29"]
[EventType "swiss"]
[EventCountry "POL"]
[Tiebreak "Cut1 Buchholz"]
[SourceTitle "playchess.com"]
[Source "ChessBase"]
[SourceQuality "1"]
[TimeControl "180+2"]

1. e4 {[%emt 0:00:00]} e5 {[%emt 0:00:01]} 2. Nf3 {[%emt 0:00:01]} Nc6 {
[%emt 0:00:02]} 3. Nc3 {[%emt 0:00:01]} Nf6 {[%emt 0:00:01]} 4. Bb5 {[%emt 0:
00:00]} Bd6 {[%emt 0:00:03]} 5. d3 {[%emt 0:00:01]} O-O {[%emt 0:00:04]} 6. a3
{[%emt 0:00:03]} Re8 {[%emt 0:00:05]} 7. O-O {[%emt 0:00:08]} h6 {[%emt 0:00:
04]} 8. Be3 {[%emt 0:00:04]} Bf8 {[%emt 0:00:05]} 9. Bc4 {[%emt 0:00:09]} d6 {
[%emt 0:00:06]} 10. h3 {[%emt 0:00:12]} Ne7 {[%emt 0:00:06]} 11. d4 {[%emt 0:
00:06]} Ng6 {[%emt 0:00:05]} 12. dxe5 {[%emt 0:00:04]} dxe5 {[%emt 0:00:13]}
13. Qxd8 {[%emt 0:00:17]} Rxd8 {[%emt 0:00:01]} 14. Rad1 {[%emt 0:00:24]} Bd7 {
[%emt 0:00:02]} 15. Nd2 {[%emt 0:00:25]} a6 {[%emt 0:00:06]} 16. Nd5 {[%emt 0:
00:12]} Nxd5 {[%emt 0:00:26]} 17. Bxd5 {[%emt 0:00:01]} Rab8 {[%emt 0:00:21]}
18. Nb3 {[%emt 0:00:06]} Ne7 {[%emt 0:00:12]} 19. Bc4 {[%emt 0:00:15]} Ba4 {
[%emt 0:00:17]} 20. Rxd8 {[%emt 0:00:25]} Rxd8 {[%emt 0:00:01]} 21. f4 {
[%emt 0:00:04]} b5 {[%emt 0:00:08]} 22. Be2 {[%emt 0:00:12]} exf4 {[%emt 0:00:
07]} 23. Bxf4 {[%emt 0:00:02]} Ng6 {[%emt 0:00:01]} 24. Bxc7 {[%emt 0:00:17]}
Rc8 {[%emt 0:00:01]} 25. Ba5 {[%emt 0:00:13]} Rxc2 {[%emt 0:00:02]} 26. Nd2 {
[%emt 0:00:02]} b4 {[%emt 0:00:07]} 27. Bd1 {[%emt 0:00:03]} Rxd2 {[%emt 0:00:
09]} 28. Bxa4 {[%emt 0:00:01]} Rxb2 {[%emt 0:00:01]} 29. axb4 {[%emt 0:00:03]}
Bxb4 {[%emt 0:00:03]} 30. Bxb4 {[%emt 0:00:02]} Rxb4 {[%emt 0:00:01]} 31. Bc6 {
[%emt 0:00:01]} Ne5 {[%emt 0:00:01]} 32. Bd5 {[%emt 0:00:01]} a5 {[%emt 0:00:
08]} 33. Rf5 {[%emt 0:00:01]} Nd3 {[%emt 0:00:20]} 34. Rxf7 {[%emt 0:00:02]}
Kh7 {[%emt 0:00:00]} 35. Ra7 {[%emt 0:00:02]} a4 {[%emt 0:00:02]} 36. Bc6 {
[%emt 0:00:01]} Nc5 {[%emt 0:00:14]} 37. e5 {[%emt 0:00:01]} Kg6 {[%emt 0:00:
00]} 38. e6 {[%emt 0:00:02]} Nxe6 {[%emt 0:00:09]} 39. Ra6 {[%emt 0:00:01]} Nc5
{[%emt 0:00:09]} 40. Ra5 {[%emt 0:00:04]} Rc4 {[%emt 0:00:00]} 41. Bd5 {
[%emt 0:00:02]} Rc1+ {[%emt 0:00:01]} 42. Kh2 {[%emt 0:00:01]} Kf6 {[%emt 0:00:
02]} 43. Bc6 {[%emt 0:00:06]} Rc4 {[%emt 0:00:08]} 44. Bd5 {[%emt 0:00:01]} Rc3
{[%emt 0:00:01]} 45. Bc6 {[%emt 0:00:04]} a3 {[%emt 0:00:00]} 46. Bd5 {[%emt 0:
00:03]} Ke5 {[%emt 0:00:01]} 47. Bg8 {[%emt 0:00:01]} Kd4 {[%emt 0:00:02]} 48.
h4 {[%emt 0:00:05]} Ke3 {[%emt 0:00:08]} 49. Kh3 {[%emt 0:00:03]} Kd2+ {
[%emt 0:00:01]} 50. Kg4 {[%emt 0:00:02]} Kc1 {[%emt 0:00:02]} 51. Kh5 {[%emt 0:
00:01]} Rg3 {[%emt 0:00:01]} 52. Rxc5+ {[%emt 0:00:02]} Kb2 {[%emt 0:00:01]}
53. Ra5 {[%emt 0:00:01]} Kc3 {[%emt 0:00:01]} 54. Rxa3+ {[%emt 0:00:01]} 1-0

[Event "FIDE Women World Blitz 2021"]
[Site "Warsaw"]
[Date "2021.12.29"]
[Round "1.1"]
[White "Dworakowska, Joanna"]
[Black "Goraj, Barbara"]
[Result "0-1"]
[ECO "A04"]
[WhiteElo "2228"]
[BlackElo "1902"]
[Annotator "NA"]
[PlyCount "87"]
[EventDate "2021.12.29"]
[EventType "swiss"]
[EventCountry "POL"]
[Tiebreak "Cut1 Buchholz"]
[SourceTitle "playchess.com"]
[Source "ChessBase"]
[SourceQuality "1"]
[TimeControl "180+2"]

1. e4 {[%emt 0:00:01]} c5 {[%emt 0:00:01]} 2. Nf3 {[%emt 0:00:01]} d6 {[%emt 0:
00:01]} 3. g3 {[%emt 0:00:02]} Nc6 {[%emt 0:00:02]} 4. Bg2 {[%emt 0:00:01]} g6
{[%emt 0:00:01]} 5. O-O {[%emt 0:00:02]} Bg7 {[%emt 0:00:02]} 6. c3 {[%emt 0:
00:02]} e5 {[%emt 0:00:15]} 7. d3 {[%emt 0:00:10]} Nge7 {[%emt 0:00:02]} 8. h3
{[%emt 0:00:36]} O-O {[%emt 0:00:03]} 9. Nbd2 {[%emt 0:00:01]} Rb8 {[%emt 0:00:
05]} 10. Re1 {[%emt 0:00:29]} b5 {[%emt 0:00:03]} 11. Nf1 {[%emt 0:00:02]} h6 {
[%emt 0:00:12]} 12. Be3 {[%emt 0:00:02]} b4 {[%emt 0:00:25]} 13. d4 {[%emt 0:
00:25]} bxc3 {[%emt 0:00:11]} 14. bxc3 {[%emt 0:00:01]} cxd4 {[%emt 0:00:01]}
15. cxd4 {[%emt 0:00:02]} Ba6 {[%emt 0:00:16]} 16. Qd2 {[%emt 0:00:30]} Kh7 {
[%emt 0:00:50]} 17. d5 {[%emt 0:00:01]} Na5 {[%emt 0:00:07]} 18. Bxa7 {[%emt 0:
00:05]} Nc4 {[%emt 0:00:02]} 19. Qc2 {[%emt 0:00:20]} Rb2 {[%emt 0:00:22]} 20.
Qc3 {[%emt 0:00:04]} Qd7 {[%emt 0:00:10]} 21. Be3 {[%emt 0:00:07]} Rc8 {
[%emt 0:00:06]} 22. N1d2 {[%emt 0:00:05]} Rb7 {[%emt 0:00:17]} 23. Nxc4 {
[%emt 0:00:03]} Rxc4 {[%emt 0:00:01]} 24. Qd2 {[%emt 0:00:01]} Rcb4 {[%emt 0:
00:07]} 25. Rec1 {[%emt 0:00:06]} f5 {[%emt 0:00:04]} 26. exf5 {[%emt 0:00:14]}
Nxf5 {[%emt 0:00:01]} 27. Ne1 {[%emt 0:00:03]} Nxe3 {[%emt 0:00:04]} 28. fxe3 {
[%emt 0:00:02]} Qf5 {[%emt 0:00:04]} 29. Rc2 {[%emt 0:00:02]} e4 {[%emt 0:00:
02]} 30. Rac1 {[%emt 0:00:01]} Be5 {[%emt 0:00:02]} 31. Rc7+ {[%emt 0:00:02]}
Bg7 {[%emt 0:00:01]} 32. Qc3 {[%emt 0:00:11]} Rxc7 {[%emt 0:00:01]} 33. Qxc7 {
[%emt 0:00:01]} Qe5 {[%emt 0:00:02]} 34. Rc2 {[%emt 0:00:07]} Rb1 {[%emt 0:00:
02]} 35. Rc1 {[%emt 0:00:01]} Rxc1 {[%emt 0:00:02]} 36. Qxc1 {[%emt 0:00:02]}
Qxg3 {[%emt 0:00:01]} 37. Nc2 {[%emt 0:00:04]} Bd3 {[%emt 0:00:01]} 38. Nb4 {
[%emt 0:00:03]} Bb5 {[%emt 0:00:04]} 39. Nc6 {[%emt 0:00:02]} h5 {[%emt 0:00:
02]} 40. Kh1 {[%emt 0:00:03]} Bh6 {[%emt 0:00:02]} 41. Nd4 {[%emt 0:00:03]}
Qxe3 {[%emt 0:00:03]} 42. Qc7+ {[%emt 0:00:03]} Bg7 {[%emt 0:00:01]} 43. Nc2 {
[%emt 0:00:05]} Qc1+ {[%emt 0:00:02]} 44. Kh2 {[%emt 0:00:01]} 0-1

[Event "FIDE Women World Blitz 2021"]
[Site "Warsaw"]
[Date "2021.12.29"]
[Round "1.2"]
[White "Muzychuk, Anna"]
[Black "Sandu, Mihaela"]
[Result "1-0"]
[ECO "B51"]
[WhiteElo "2533"]
[BlackElo "2244"]
[Annotator "ChessBase"]
[PlyCount "50"]
[EventDate "2021.12.29"]
[EventType "swiss"]
[EventCountry "POL"]
[Tiebreak "Cut1 Buchholz"]
[SourceTitle "playchess.com"]
[Source "ChessBase"]
[SourceQuality "1"]
[TimeControl "180+2"]

1. e4 {[%emt 0:00:01]} c5 {[%emt 0:00:01]} 2. Nf3 {[%emt 0:00:01]} d6 {[%emt 0:
00:01]} 3. Bb5+ {[%emt 0:00:00]} Nd7 {[%emt 0:00:02]} 4. Ba4 {[%emt 0:00:02]}
a6 {[%emt 0:00:10]} 5. c4 {[%emt 0:00:01]} Ngf6 {[%emt 0:00:10]} 6. O-O {
[%emt 0:00:02]} g6 {[%emt 0:00:10]} 7. Nc3 {[%emt 0:00:08]} Bg7 {[%emt 0:00:01]
} 8. d3 {[%emt 0:00:04]} O-O {[%emt 0:00:03]} 9. h3 {[%emt 0:00:02]} Ne5 {
[%emt 0:00:21]} 10. Nxe5 {[%emt 0:00:10]} dxe5 {[%emt 0:00:02]} 11. Be3 {
[%emt 0:00:01]} b6 {[%emt 0:00:09]} 12. Rb1 {[%emt 0:00:02]} a5 {[%emt 0:01:05]
} 13. a3 {[%emt 0:00:10]} Nh5 {[%emt 0:00:21]} 14. b4 {[%emt 0:00:27]} axb4 {
[%emt 0:00:01]} 15. axb4 {[%emt 0:00:01]} Nf4 {[%emt 0:00:03]} 16. Bc6 {
[%emt 0:00:26]} Ra3 {[%emt 0:00:02]} 17. Nd5 {[%emt 0:00:32]} Rxd3 {[%emt 0:00:
19]} 18. Qc2 {[%emt 0:00:01]} Ra3 {[%emt 0:00:10]} 19. bxc5 {[%emt 0:00:05]}
bxc5 {[%emt 0:00:16]} 20. Bxc5 {[%emt 0:00:01]} Nxh3+ {[%emt 0:00:09]} 21. gxh3
{[%emt 0:00:02]} Rxh3 {[%emt 0:00:02]} 22. Bxe7 {[%emt 0:00:11]} Bg4 {[%emt 0:
00:08]} 23. f3 {[%emt 0:00:02]} Qc8 {[%emt 0:00:02]} 24. Bxf8 {[%emt 0:00:02]}
Rg3+ {[%emt 0:00:02]} 25. Kh2 {[%emt 0:00:02]} Rh3+ {[%emt 0:00:02]} 1-0

[Event "FIDE Women World Blitz 2021"]
[Site "Warsaw"]
[Date "2021.12.29"]
[Round "1.2"]
[White "Wikar, Martyna"]
[Black "Efimenko, Maria"]
[Result "0-1"]
[ECO "B06"]
[WhiteElo "1899"]
[BlackElo "2207"]
[Annotator "NA"]
[PlyCount "102"]
[EventDate "2021.12.29"]
[EventType "swiss"]
[EventCountry "POL"]
[Tiebreak "Cut1 Buchholz"]
[SourceTitle "playchess.com"]
[Source "ChessBase"]
[SourceQuality "1"]
[TimeControl "180+2"]

1. e4 {[%emt 0:00:02]} g6 {[%emt 0:00:01]} 2. d4 {[%emt 0:00:03]} Bg7 {[%emt 0:
00:01]} 3. Nc3 {[%emt 0:00:03]} d6 {[%emt 0:00:01]} 4. f4 {[%emt 0:00:02]} Nc6
{[%emt 0:00:06]} 5. Nf3 {[%emt 0:00:02]} Bg4 {[%emt 0:00:04]} 6. Be3 {[%emt 0:
00:19]} Bxf3 {[%emt 0:00:23]} 7. gxf3 {[%emt 0:00:02]} e6 {[%emt 0:00:19]} 8.
Qd2 {[%emt 0:00:14]} a6 {[%emt 0:00:35]} 9. h4 {[%emt 0:00:11]} h5 {[%emt 0:00:
09]} 10. O-O-O {[%emt 0:00:08]} Nge7 {[%emt 0:00:10]} 11. d5 {[%emt 0:00:10]}
exd5 {[%emt 0:00:01]} 12. exd5 {[%emt 0:00:04]} Nb8 {[%emt 0:00:24]} 13. Bd4 {
[%emt 0:00:02]} O-O {[%emt 0:00:04]} 14. Bxg7 {[%emt 0:00:13]} Kxg7 {[%emt 0:
00:01]} 15. Qd4+ {[%emt 0:00:01]} Kh7 {[%emt 0:00:01]} 16. Bh3 {[%emt 0:00:05]}
Nd7 {[%emt 0:00:09]} 17. Rhg1 {[%emt 0:00:10]} b5 {[%emt 0:00:10]} 18. Ne4 {
[%emt 0:00:13]} Ng8 {[%emt 0:00:06]} 19. f5 {[%emt 0:00:20]} Ne5 {[%emt 0:00:
05]} 20. fxg6+ {[%emt 0:00:05]} fxg6 {[%emt 0:00:01]} 21. Ng5+ {[%emt 0:00:05]}
Kh6 {[%emt 0:00:03]} 22. Qe3 {[%emt 0:00:14]} Nc4 {[%emt 0:00:01]} 23. Nf7+ {
[%emt 0:00:22]} Kh7 {[%emt 0:00:01]} 24. Ng5+ {[%emt 0:00:08]} Kh6 {[%emt 0:00:
01]} 25. Qe4 {[%emt 0:00:13]} Qf6 {[%emt 0:00:02]} 26. c3 {[%emt 0:00:06]} Qf4+
{[%emt 0:00:01]} 27. Qxf4 {[%emt 0:00:08]} Rxf4 {[%emt 0:00:01]} 28. Rde1 {
[%emt 0:00:04]} Ne5 {[%emt 0:00:02]} 29. Re3 {[%emt 0:00:05]} Rxh4 {[%emt 0:00:
01]} 30. Be6 {[%emt 0:00:02]} Rf8 {[%emt 0:00:06]} 31. Kc2 {[%emt 0:00:03]}
Rhf4 {[%emt 0:00:01]} 32. Rg3 {[%emt 0:00:02]} h4 {[%emt 0:00:02]} 33. Rg1 {
[%emt 0:00:03]} Nxf3 {[%emt 0:00:02]} 34. Nxf3 {[%emt 0:00:01]} Rxf3 {[%emt 0:
00:01]} 35. Re4 {[%emt 0:00:01]} g5 {[%emt 0:00:03]} 36. Reg4 {[%emt 0:00:02]}
Rg3 {[%emt 0:00:07]} 37. R1xg3 {[%emt 0:00:02]} hxg3 {[%emt 0:00:01]} 38. Rxg3
{[%emt 0:00:01]} Nf6 {[%emt 0:00:01]} 39. Kd3 {[%emt 0:00:02]} Nh5 {[%emt 0:00:
01]} 40. Rh3 {[%emt 0:00:01]} Kg6 {[%emt 0:00:01]} 41. Rh1 {[%emt 0:00:04]} Rf2
{[%emt 0:00:02]} 42. b4 {[%emt 0:00:04]} Nf4+ {[%emt 0:00:01]} 43. Ke4 {
[%emt 0:00:02]} Rxa2 {[%emt 0:00:02]} 44. Rh8 {[%emt 0:00:02]} Re2+ {[%emt 0:
00:02]} 45. Kf3 {[%emt 0:00:01]} Rc2 {[%emt 0:00:05]} 46. Rg8+ {[%emt 0:00:01]}
Kf6 {[%emt 0:00:01]} 47. Kg4 {[%emt 0:00:02]} Rxc3 {[%emt 0:00:02]} 48. Rxg5 {
[%emt 0:00:01]} Nxe6 {[%emt 0:00:01]} 49. Rf5+ {[%emt 0:00:02]} Ke7 {[%emt 0:
00:01]} 50. dxe6 {[%emt 0:00:02]} Kxe6 {[%emt 0:00:01]} 51. Rf1 {[%emt 0:00:03]
} Rc4+ {[%emt 0:00:01]} 0-1

[Event "FIDE Women World Blitz 2021"]
[Site "Warsaw"]
[Date "2021.12.29"]
[Round "1.3"]
[White "Bivol, Alina"]
[Black "Koneru, Humpy"]
[Result "0-1"]
[ECO "C26"]
[WhiteElo "2377"]
[BlackElo "2586"]
[Annotator "ChessBase"]
[PlyCount "58"]
[EventDate "2021.12.29"]
[EventType "swiss"]
[EventCountry "POL"]
[Tiebreak "Cut1 Buchholz"]
[SourceTitle "playchess.com"]
[Source "ChessBase"]
[SourceQuality "1"]
[TimeControl "180+2"]

1. e4 {[%emt 0:00:01]} e5 {[%emt 0:00:01]} 2. Nf3 {[%emt 0:00:02]} Nc6 {
[%emt 0:00:02]} 3. Nc3 {[%emt 0:00:03]} Nf6 {[%emt 0:00:02]} 4. g3 {[%emt 0:00:
01]} Bc5 {[%emt 0:00:03]} 5. Bg2 {[%emt 0:00:02]} d6 {[%emt 0:00:02]} 6. O-O {
[%emt 0:00:05]} a6 {[%emt 0:00:03]} 7. h3 {[%emt 0:00:11]} h6 {[%emt 0:00:08]}
8. d3 {[%emt 0:00:09]} Be6 {[%emt 0:00:03]} 9. Kh2 {[%emt 0:00:11]} Qd7 {
[%emt 0:00:08]} 10. Be3 {[%emt 0:00:16]} Bxe3 {[%emt 0:00:16]} 11. fxe3 {
[%emt 0:00:01]} O-O-O {[%emt 0:00:08]} 12. d4 {[%emt 0:00:04]} d5 {[%emt 0:00:
08]} 13. Nxe5 {[%emt 0:00:57]} Nxe5 {[%emt 0:00:02]} 14. dxe5 {[%emt 0:00:01]}
Nxe4 {[%emt 0:00:03]} 15. Ne2 {[%emt 0:00:47]} c5 {[%emt 0:00:17]} 16. c4 {
[%emt 0:00:06]} Qc7 {[%emt 0:00:14]} 17. cxd5 {[%emt 0:00:12]} Bxd5 {[%emt 0:
00:12]} 18. Qc2 {[%emt 0:00:02]} Qxe5 {[%emt 0:00:09]} 19. Rac1 {[%emt 0:00:04]
} Kb8 {[%emt 0:00:06]} 20. b3 {[%emt 0:00:02]} Bc6 {[%emt 0:00:05]} 21. Rcd1 {
[%emt 0:00:01]} f5 {[%emt 0:00:17]} 22. Bxe4 {[%emt 0:00:13]} Bxe4 {[%emt 0:00:
05]} 23. Qc3 {[%emt 0:00:01]} Qe7 {[%emt 0:00:09]} 24. Nf4 {[%emt 0:00:01]} Bc6
{[%emt 0:00:08]} 25. Qc2 {[%emt 0:00:03]} Qxe3 {[%emt 0:00:13]} 26. Rd3 {
[%emt 0:00:11]} Rxd3 {[%emt 0:00:10]} 27. Qxd3 {[%emt 0:00:01]} Qxd3 {[%emt 0:
00:10]} 28. Nxd3 {[%emt 0:00:01]} Rd8 {[%emt 0:00:10]} 29. Nxc5 {[%emt 0:00:03]
} Rd2+ {[%emt 0:00:02]} 0-1

[Event "FIDE Women World Blitz 2021"]
[Site "Warsaw"]
[Date "2021.12.29"]
[Round "1.3"]
[White "Lach, Aleksandra"]
[Black "Dylag, Emilia"]
[Result "0-1"]
[ECO "B43"]
[WhiteElo "2204"]
[BlackElo "1863"]
[Annotator "NA"]
[PlyCount "58"]
[EventDate "2021.12.29"]
[EventType "swiss"]
[EventCountry "POL"]
[Tiebreak "Cut1 Buchholz"]
[SourceTitle "playchess.com"]
[Source "ChessBase"]
[SourceQuality "1"]
[TimeControl "180+2"]

1. e4 {[%emt 0:00:01]} c5 {[%emt 0:00:01]} 2. Nc3 {[%emt 0:00:00]} a6 {[%emt 0:
00:01]} 3. Nge2 {[%emt 0:00:03]} e6 {[%emt 0:00:02]} 4. g3 {[%emt 0:00:01]} b5
{[%emt 0:00:02]} 5. Bg2 {[%emt 0:00:01]} Bb7 {[%emt 0:00:01]} 6. d4 {[%emt 0:
00:06]} cxd4 {[%emt 0:00:28]} 7. Nxd4 {[%emt 0:00:01]} Nf6 {[%emt 0:00:04]} 8.
a3 {[%emt 0:00:00]} Be7 {[%emt 0:00:02]} 9. O-O {[%emt 0:00:08]} O-O {[%emt 0:
00:02]} 10. e5 {[%emt 0:00:35]} Bxg2 {[%emt 0:00:28]} 11. exf6 {[%emt 0:00:01]}
Bxf1 {[%emt 0:00:02]} 12. fxe7 {[%emt 0:00:01]} Qxe7 {[%emt 0:00:02]} 13. Qxf1
{[%emt 0:00:02]} Nc6 {[%emt 0:00:11]} 14. Nxc6 {[%emt 0:00:06]} dxc6 {[%emt 0:
00:01]} 15. Be3 {[%emt 0:00:01]} Rfd8 {[%emt 0:00:11]} 16. Ne4 {[%emt 0:00:06]}
Rd5 {[%emt 0:00:28]} 17. b4 {[%emt 0:00:29]} f5 {[%emt 0:00:25]} 18. Bg5 {
[%emt 0:00:53]} Qf7 {[%emt 0:00:09]} 19. Nc5 {[%emt 0:00:07]} h6 {[%emt 0:00:
06]} 20. Bc1 {[%emt 0:00:18]} e5 {[%emt 0:00:06]} 21. Bb2 {[%emt 0:00:02]} Re8
{[%emt 0:00:04]} 22. Nd3 {[%emt 0:00:08]} f4 {[%emt 0:00:09]} 23. Qh3 {[%emt 0:
00:03]} f3 {[%emt 0:00:16]} 24. Re1 {[%emt 0:00:15]} e4 {[%emt 0:00:02]} 25.
Nc5 {[%emt 0:00:12]} e3 {[%emt 0:00:06]} 26. Nd3 {[%emt 0:00:06]} Rxd3 {
[%emt 0:00:18]} 27. cxd3 {[%emt 0:00:01]} Qa2 {[%emt 0:00:04]} 28. Bd4 {
[%emt 0:00:06]} Qxf2+ {[%emt 0:00:01]} 29. Kh1 {[%emt 0:00:02]} Qxe1+ {[%emt 0:
00:01]} 0-1

[Event "FIDE Women World Blitz 2021"]
[Site "Warsaw"]
[Date "2021.12.29"]
[Round "1.4"]
[White "Stefanova, Antoaneta"]
[Black "Sliwicka, Alicja"]
[Result "1-0"]
[ECO "D79"]
[WhiteElo "2475"]
[BlackElo "2303"]
[Annotator "ChessBase"]
[PlyCount "61"]
[EventDate "2021.12.29"]
[EventType "swiss"]
[EventCountry "POL"]
[Tiebreak "Cut1 Buchholz"]
[SourceTitle "playchess.com"]
[Source "ChessBase"]
[SourceQuality "1"]
[TimeControl "180+2"]

1. Nf3 {[%emt 0:00:01]} c5 {[%emt 0:00:01]} 2. g3 {[%emt 0:00:02]} Nc6 {
[%emt 0:00:03]} 3. Bg2 {[%emt 0:00:04]} g6 {[%emt 0:00:05]} 4. c3 {[%emt 0:00:
03]} Bg7 {[%emt 0:00:04]} 5. d4 {[%emt 0:00:01]} cxd4 {[%emt 0:00:07]} 6. cxd4
{[%emt 0:00:01]} d5 {[%emt 0:00:03]} 7. Nc3 {[%emt 0:00:02]} Nf6 {[%emt 0:00:
07]} 8. Ne5 {[%emt 0:00:02]} O-O {[%emt 0:00:18]} 9. O-O {[%emt 0:00:19]} Be6 {
[%emt 0:00:47]} 10. Nxc6 {[%emt 0:00:06]} bxc6 {[%emt 0:00:02]} 11. Bf4 {
[%emt 0:00:06]} Nh5 {[%emt 0:00:19]} 12. Be3 {[%emt 0:00:01]} f5 {[%emt 0:00:
02]} 13. Qd2 {[%emt 0:00:10]} Qd6 {[%emt 0:00:24]} 14. Bh6 {[%emt 0:00:38]} f4
{[%emt 0:00:05]} 15. Bxg7 {[%emt 0:00:17]} Kxg7 {[%emt 0:00:02]} 16. Qd3 {
[%emt 0:00:11]} Bf5 {[%emt 0:00:07]} 17. e4 {[%emt 0:00:07]} dxe4 {[%emt 0:00:
18]} 18. Nxe4 {[%emt 0:00:03]} Qc7 {[%emt 0:00:08]} 19. Qc3 {[%emt 0:00:07]}
Nf6 {[%emt 0:00:13]} 20. Nxf6 {[%emt 0:00:02]} Rxf6 {[%emt 0:00:01]} 21. d5 {
[%emt 0:00:01]} fxg3 {[%emt 0:00:11]} 22. hxg3 {[%emt 0:00:06]} h5 {[%emt 0:00:
02]} 23. dxc6 {[%emt 0:00:05]} h4 {[%emt 0:00:01]} 24. Rfe1 {[%emt 0:00:05]} h3
{[%emt 0:00:07]} 25. Bf3 {[%emt 0:00:08]} Be6 {[%emt 0:00:07]} 26. Rxe6 {
[%emt 0:00:18]} h2+ {[%emt 0:00:02]} 27. Kxh2 {[%emt 0:00:11]} Rh8+ {[%emt 0:
00:05]} 28. Kg1 {[%emt 0:00:01]} Kf7 {[%emt 0:00:01]} 29. Rxf6+ {[%emt 0:00:03]
} exf6 {[%emt 0:00:01]} 30. Re1 {[%emt 0:00:02]} Qb6 {[%emt 0:00:04]} 31. Qb3+
{[%emt 0:00:02]} 1-0

[Event "FIDE Women World Blitz 2021"]
[Site "Warsaw"]
[Date "2021.12.29"]
[Round "1.4"]
[White "Jarocka, Liwia"]
[Black "Buksa, Nataliya"]
[Result "0-1"]
[ECO "E14"]
[WhiteElo "1851"]
[BlackElo "2199"]
[Annotator "NA"]
[PlyCount "89"]
[EventDate "2021.12.29"]
[EventType "swiss"]
[EventCountry "POL"]
[Tiebreak "Cut1 Buchholz"]
[SourceTitle "playchess.com"]
[Source "ChessBase"]
[SourceQuality "1"]
[TimeControl "180+2"]

1. Nf3 {[%emt 0:00:01]} d5 {[%emt 0:00:01]} 2. b3 {[%emt 0:00:01]} c5 {[%emt 0:
00:04]} 3. Bb2 {[%emt 0:00:02]} Nf6 {[%emt 0:00:02]} 4. e3 {[%emt 0:00:01]} e6
{[%emt 0:00:01]} 5. d4 {[%emt 0:00:01]} b6 {[%emt 0:00:07]} 6. Bd3 {[%emt 0:00:
04]} Bb7 {[%emt 0:00:02]} 7. O-O {[%emt 0:00:02]} Bd6 {[%emt 0:00:01]} 8. c4 {
[%emt 0:00:02]} Nbd7 {[%emt 0:00:05]} 9. Nbd2 {[%emt 0:00:17]} Qe7 {[%emt 0:00:
05]} 10. Ne5 {[%emt 0:00:17]} O-O {[%emt 0:00:14]} 11. Ndf3 {[%emt 0:00:05]}
Ne4 {[%emt 0:00:05]} 12. Nxd7 Qxd7 {[%emt 0:00:01]} 13. Bxe4 {[%emt 0:00:29]}
dxe4 {[%emt 0:00:02]} 14. dxc5 {[%emt 0:00:15]} bxc5 {[%emt 0:00:09]} 15. Nd2 {
[%emt 0:00:16]} Qc7 {[%emt 0:00:10]} 16. h3 {[%emt 0:00:04]} Rad8 {[%emt 0:00:
06]} 17. Qc2 {[%emt 0:00:01]} f5 {[%emt 0:00:02]} 18. Rad1 {[%emt 0:00:01]} Rd7
{[%emt 0:00:09]} 19. Nb1 {[%emt 0:00:02]} Rfd8 {[%emt 0:00:05]} 20. Nc3 {
[%emt 0:00:09]} a6 {[%emt 0:00:01]} 21. Kh1 {[%emt 0:00:02]} Bc6 {[%emt 0:00:
14]} 22. Rd2 {[%emt 0:00:38]} Be5 {[%emt 0:00:47]} 23. Rxd7 {[%emt 0:00:01]}
Rxd7 {[%emt 0:00:08]} 24. Rd1 {[%emt 0:00:01]} Qd8 {[%emt 0:00:05]} 25. Rxd7 {
[%emt 0:00:02]} Qxd7 {[%emt 0:00:01]} 26. Nd1 {[%emt 0:00:02]} Bxb2 {[%emt 0:
00:15]} 27. Nxb2 {[%emt 0:00:01]} e5 {[%emt 0:00:02]} 28. Kg1 {[%emt 0:00:05]}
f4 {[%emt 0:00:02]} 29. Qd1 {[%emt 0:00:07]} Qe7 {[%emt 0:00:08]} 30. Qd2 {
[%emt 0:00:10]} f3 {[%emt 0:00:04]} 31. g3 {[%emt 0:00:03]} h6 {[%emt 0:00:04]}
32. Nd1 {[%emt 0:00:11]} Kh7 {[%emt 0:00:18]} 33. Nc3 {[%emt 0:00:02]} Qb7 {
[%emt 0:00:01]} 34. Nd5 {[%emt 0:00:07]} Qd7 {[%emt 0:00:11]} 35. Kh2 {[%emt 0:
00:10]} Kg6 {[%emt 0:00:06]} 36. a3 {[%emt 0:00:04]} Kh7 {[%emt 0:00:04]} 37.
b4 {[%emt 0:00:01]} cxb4 {[%emt 0:00:05]} 38. axb4 {[%emt 0:00:01]} Qb7 {
[%emt 0:00:01]} 39. Qd1 {[%emt 0:00:12]} Bd7 {[%emt 0:00:05]} 40. Qc2 {[%emt 0:
00:04]} Bf5 {[%emt 0:00:01]} 41. g4 {[%emt 0:00:06]} Bg6 {[%emt 0:00:01]} 42.
Qb3 {[%emt 0:00:02]} h5 {[%emt 0:00:06]} 43. Qc2 {[%emt 0:00:06]} hxg4 {
[%emt 0:00:02]} 44. hxg4 Qd7 {[%emt 0:00:01]} 45. Kg3 {[%emt 0:00:00]} 0-1